lending/lending_fUSD_20260124
["ID","MTS","AMOUNT","RATE_DAILY","PERIOD"]
[403207271,1769267434738,-512.6608624,0.00013698,2]
[403207272,1769267434747,-500.0,0.00013698,2]
[403207273,1769267434756,-500.0,0.00013698,2]
[403207274,1769267434765,-507.4251083,0.00013698,2]
[403207275,1769267434774,-500.0,0.00013698,2]
[403207276,1769267434785,-500.0,0.00013698,2]
[403207277,1769267434794,-500.0,0.00013698,2]
[403207278,1769267434804,-500.0,0.00013698,2]
[403207279,1769267434813,-500.0,0.00013698,2]
[403207280,1769267434822,-500.0,0.00013698,2]
[403207281,1769267434833,-500.0,0.00013698,2]
[403207282,1769267434843,-379.72968761,0.00013698,2]
[403207283,1769267434853,-1884.94,0.00013698,2]
[403207284,1769267434863,-500.0,0.00013698,2]
[403207285,1769267434872,-500.0,0.00013698,2]
[403207286,1769267434882,-500.0,0.00013698,2]
[403207287,1769267434891,-500.0,0.00013698,2]
[403207288,1769267434901,-500.0,0.00013698,2]
[403207289,1769267434910,-513.68541825,0.00013698,2]
[403207290,1769267434919,-500.0,0.00013698,2]
[403207291,1769267434928,-500.0,0.00013698,2]
[403207292,1769267434938,-500.0,0.00013698,2]
[403207293,1769267434947,-500.0,0.00013698,2]
[403207294,1769267434957,-500.0,0.00013698,2]
[403207295,1769267434966,-500.0,0.00013698,2]
[403207296,1769267434976,-500.0,0.00013698,2]
[403207297,1769267434985,-500.0,0.00013698,2]
[403207298,1769267434995,-171.84070592,0.00013699,3]
[403207299,1769267435004,-150.07696773,0.00013699,3]
[403207300,1769267435014,-980.82,0.00013699,2]
[403207301,1769267435022,-778.0,0.00013721,2]
[403207302,1769267435032,-500.0,0.00013726,2]
[403207303,1769267435041,-151.0,0.00013747,2]
[403207304,1769267435050,-200.0,0.00013749,2]
[403207305,1769267435060,-38445.36467444,0.0001375,2]
[403207306,1769267435069,-778.0,0.00013776,2]
[403207308,1769267435078,-200.0,0.00013886,2]
[403207309,1769267435088,-161.0,0.000139,2]
[403207310,1769267435098,-433.0,0.00013915,2]
[403207311,1769267435107,-1058.42828266,0.00013927,2]
[403207312,1769267435117,-1884.94,0.00013972,2]
[403207313,1769267435126,-200.0,0.00014025,2]
[403207314,1769267435136,-587.0,0.00014078,2]
[403207315,1769267435145,-500.0,0.00014115,2]
[403207316,1769267435154,-500.0,0.00014115,2]
[403207317,1769267435163,-527.20053944,0.00014115,2]
[403207318,1769267435173,-2351.0,0.00014125,2]
[403207319,1769267435182,-200.0,0.00014166,2]
[403207320,1769267435191,-197.38799697,0.00014214,2]
[403207321,1769267435200,-1884.94,0.00014246,2]
[403207322,1769267435211,-276.09590455,0.00014286,2]
[403207323,1769267435220,-200.0,0.00014307,2]
[403207324,1769267435229,-214.83925201,0.00014329,2]
[403207325,1769267435239,-9480.44349339,0.00014386,2]
[403207326,1769267435248,-38445.36467444,0.00014442,2]
[403207327,1769267435259,-1884.94,0.0001452,2]
[403207328,1769267435268,-151.0,0.00014634,2]
[403207329,1769267435278,-151.0,0.00014635,2]
[403207330,1769267435289,-151.0,0.00014664,2]
[403207331,1769267435298,-974.67365362,0.00014713,2]
[403207332,1769267435308,-512.0,0.0001474,2]
[403207333,1769267435317,-1884.94,0.00014794,2]
[403207334,1769267435326,-492.86,0.00014861,2]
[403207335,1769267435335,-161.0,0.000149,2]
[403207336,1769267435344,-161.0,0.000149,2]
[403207337,1769267435354,-500.0,0.00015041,2]
[403207338,1769267435363,-1884.94,0.00015068,2]
[403207339,1769267435373,-9480.44349339,0.00015089,2]
[403207340,1769267435382,-152.0,0.00015114,3]
[403207341,1769267435393,-38445.36467444,0.00015133,2]
[403207342,1769267435402,-276.09590455,0.00015189,2]
[403207343,1769267435412,-217.0,0.00015199,2]
[403207344,1769267435421,-1884.94,0.00015342,2]
[403207345,1769267435431,-250.0,0.00015426,2]
[403207346,1769267435440,-823.0,0.00015459,2]
[403207347,1769267435449,-3292.0,0.00015538,2]
[403207348,1769267435458,-1884.94,0.00015616,2]
[403207349,1769267435468,-867.75,0.00015755,2]
[403207350,1769267435478,-974.67365362,0.00015775,2]
[403207351,1769267435487,-9480.44349339,0.00015792,2]
[403207352,1769267435496,-6599.0,0.00015825,2]
[403207353,1769267435506,-38445.36467444,0.00015825,2]
[403207354,1769267435515,-350.97,0.00015869,2]
[403207355,1769267435524,-500.0,0.00015873,2]
[403207356,1769267435533,-500.0,0.00015873,2]
[403207357,1769267435542,-500.41908961,0.00015873,2]
[403207358,1769267435555,-500.0,0.00015873,2]
[403207359,1769267435564,-500.0,0.00015873,2]
[403207360,1769267435572,-500.0,0.00015873,2]
[403207361,1769267435581,-500.0,0.00015873,2]
[403207362,1769267435590,-502.78879497,0.00015873,2]
[403207363,1769267435601,-500.0,0.00015873,2]
[403207364,1769267435610,-157.93572848,0.00015873,2]
[403207365,1769267435620,-500.0,0.00015873,2]
[403207366,1769267435631,-500.0,0.00015873,2]
[403207367,1769267435641,-500.0,0.00015873,2]
[403207368,1769267435651,-500.0,0.00015873,2]
[403207369,1769267435661,-500.0,0.00015873,2]
[403207370,1769267435670,-500.0,0.00015873,2]
[403207371,1769267435679,-500.0,0.00015873,2]
[403207372,1769267435688,-500.0,0.00015873,2]
[403207373,1769267435698,-500.0,0.00015873,2]
[403207374,1769267435707,-500.0,0.00015873,2]
[403207375,1769267435716,-500.0,0.00015873,2]
[403207376,1769267435725,-500.0,0.00015873,2]
[403207377,1769267435734,-500.0,0.00015873,2]
[403207378,1769267435743,-500.0,0.00015873,2]
[403207379,1769267435752,-500.0,0.00015873,2]
[403207380,1769267435763,-344.27510642,0.00015873,2]
[403207381,1769267435772,-500.0,0.00015873,2]
[403207382,1769267435782,-500.0,0.00015873,2]
[403207383,1769267435791,-500.0,0.00015873,2]
[403207384,1769267435800,-1884.94,0.0001589,2]
[403207385,1769267435810,-161.0,0.000159,2]
[403207386,1769267435821,-164.0,0.000159,2]
[403207387,1769267435831,-152.0,0.00015913,4]
[403207388,1769267435841,-500.0,0.00015956,2]
[403207389,1769267435850,-500.0,0.00015956,2]
[403207390,1769267435860,-286.14,0.00015993,2]
[403207391,1769267435871,-162.31226797,0.00016,2]
[403207392,1769267435881,-4497.0,0.00016,2]
[403207393,1769267435890,-867.75,0.00016029,2]
[403207394,1769267435899,-500.0,0.00016066,2]
[403207395,1769267435908,-500.0,0.00016067,2]
[403207396,1769267435918,-500.0,0.00016067,2]
[403207397,1769267435928,-500.0,0.00016067,2]
[403207398,1769267435937,-276.09590455,0.00016093,2]
[403207399,1769267435947,-492.86,0.00016139,2]
[403207400,1769267435957,-1884.94,0.00016164,2]
[403207401,1769267435967,-5020.56129792,0.0001617,2]
[403207402,1769267435976,-5533.0,0.000162,3]
[403207403,1769267435986,-560.21,0.0001625,2]
[403207404,1769267435995,-159.59843399,0.00016252,2]
[403207405,1769267436004,-10628.87,0.00016257,2]
[403207406,1769267436013,-867.75,0.00016303,2]
[403207407,1769267436023,-286.13871706,0.00016338,2]
[403207408,1769267436032,-4840.1444,0.00016338,2]
[403207409,1769267436041,-500.0,0.00016356,2]
[403207410,1769267436051,-500.0,0.00016356,2]
[403207411,1769267436060,-5533.0,0.000164,5]
[403207412,1769267436069,-963.7080185,0.00016421,2]
[403207413,1769267436078,-1000.0,0.00016421,2]
[403207414,1769267436087,-1000.0,0.00016421,2]
[403207415,1769267436097,-1000.0,0.00016421,2]
[403207416,1769267436106,-1000.0,0.00016421,2]
[403207417,1769267436310,-1000.0,0.00016421,2]
[403207418,1769267436356,-1000.0,0.00016421,2]
[403207419,1769267436366,-1000.0,0.00016421,2]
[403207420,1769267436375,-1000.0,0.00016421,2]
[403207421,1769267436385,-1000.0,0.00016421,2]
[403207422,1769267436395,-1000.0,0.00016421,2]
[403207423,1769267436404,-1000.0,0.00016421,2]
[403207424,1769267436413,-1000.0,0.00016421,2]
[403207425,1769267436423,-842.67353108,0.00016421,2]
[403207426,1769267436432,-176.74718944,0.00016421,2]
[403207427,1769267436441,-1000.0,0.00016421,2]
[403207428,1769267436451,-1000.0,0.00016421,2]
[403207429,1769267436461,-1000.0,0.00016421,2]
[403207430,1769267436471,-1000.0,0.00016421,2]
[403207431,1769267436480,-1000.0,0.00016421,2]
[403207432,1769267436491,-1000.0,0.00016421,2]
[403207433,1769267436500,-1000.0,0.00016421,2]
[403207434,1769267436509,-155.01998311,0.00016421,2]
[403207435,1769267436519,-1000.0,0.00016421,2]
[403207436,1769267436528,-1000.0,0.00016421,2]
[403207437,1769267436537,-500.0,0.00016437,2]
[403207438,1769267436548,-500.0,0.00016437,2]
[403207439,1769267436559,-150.0,0.00016437,2]
[403207440,1769267436568,-500.0,0.00016438,2]
[403207441,1769267436578,-500.0,0.00016438,2]
[403207442,1769267436587,-500.0,0.00016438,2]
[403207443,1769267436597,-500.0,0.00016438,2]
[403207444,1769267436606,-500.0,0.00016438,2]
[403207445,1769267436615,-500.0,0.00016438,2]
[403207446,1769267436628,-500.0,0.00016438,2]
[403207447,1769267436638,-500.0,0.00016438,2]
[403207448,1769267436648,-500.0,0.00016438,2]
[403207449,1769267436657,-500.0,0.00016438,2]
[403207450,1769267436666,-447.49060964,0.00016438,2]
[403207451,1769267436675,-375.37,0.00016438,2]
[403207452,1769267436685,-375.37,0.00016438,2]
[403207453,1769267436694,-375.37,0.00016438,2]
[403207454,1769267436703,-375.37,0.00016438,2]
[403207455,1769267436712,-375.37,0.00016438,2]
[403207456,1769267436722,-375.37,0.00016438,2]
[403207457,1769267436732,-375.37,0.00016438,2]
[403207458,1769267436741,-375.37,0.00016438,2]
[403207459,1769267436751,-375.37,0.00016438,2]
[403207460,1769267436760,-375.37,0.00016438,2]
[403207461,1769267436770,-375.37,0.00016438,2]
[403207462,1769267436779,-375.37,0.00016438,2]
[403207463,1769267436788,-375.37,0.00016438,2]
[403207464,1769267436798,-375.37,0.00016438,2]
[403207465,1769267436807,-375.37,0.00016438,2]
[403207466,1769267436816,-375.37,0.00016438,2]
[403207467,1769267436826,-375.37,0.00016438,2]
[403207468,1769267436836,-375.37,0.00016438,2]
[403207469,1769267436845,-375.37,0.00016438,2]
[403207470,1769267436855,-375.37,0.00016438,2]
[403207471,1769267436864,-375.37,0.00016438,2]
[403207472,1769267436873,-375.37,0.00016438,2]
[403207473,1769267436882,-375.37,0.00016438,2]
[403207474,1769267436892,-375.4227433,0.00016438,2]
[403207475,1769267436902,-1884.94,0.00016438,2]
[403207476,1769267436911,-250.0,0.00016438,2]
[403207477,1769267436921,-250.0,0.00016438,2]
[403207478,1769267436930,-250.0,0.00016438,2]
[403207479,1769267436939,-250.0,0.00016438,2]
[403207480,1769267436948,-250.0,0.00016438,2]
[403207481,1769267436958,-250.0,0.00016438,2]
[403207482,1769267436967,-250.0,0.00016438,2]
[403207483,1769267436977,-250.0,0.00016438,2]
[403207484,1769267436986,-250.0,0.00016438,2]
[403207485,1769267436997,-250.0,0.00016438,2]
[403207486,1769267437007,-274.311997,0.00016438,2]
[403207487,1769267437017,-500.0,0.00016438,2]
[403207488,1769267437026,-500.0,0.00016438,2]
[403207489,1769267437036,-500.0,0.00016438,2]
[403207490,1769267437046,-500.0,0.00016438,2]
[403207491,1769267437056,-500.0,0.00016438,2]
[403207492,1769267437065,-500.0,0.00016438,2]
[403207493,1769267437075,-500.0,0.00016438,2]
[403207494,1769267437084,-500.0,0.00016438,2]
[403207495,1769267437093,-500.0,0.00016438,2]
[403207496,1769267437102,-500.0,0.00016438,2]
[403207497,1769267437111,-500.0,0.00016438,2]
[403207498,1769267437121,-500.0,0.00016438,2]
[403207499,1769267437132,-500.0,0.00016438,2]
[403207500,1769267437142,-500.0,0.00016438,2]
[403207501,1769267437151,-500.0,0.00016438,2]
[403207502,1769267437161,-162.02547009,0.00016438,2]
[403207503,1769267437171,-500.0,0.00016438,2]
[403207504,1769267437181,-500.0,0.00016438,2]
[403207505,1769267437190,-500.0,0.00016438,2]
[403207506,1769267437199,-500.0,0.00016438,2]
[403207507,1769267437209,-500.0,0.00016438,2]
[403207508,1769267437218,-500.0,0.00016438,2]
[403207509,1769267437228,-500.0,0.00016438,2]
[403207510,1769267437238,-500.0,0.00016438,2]
[403207511,1769267437248,-500.0,0.00016438,2]
[403207512,1769267437257,-500.0,0.00016438,2]
[403207513,1769267437267,-500.0,0.00016438,2]
[403207514,1769267437277,-500.0,0.00016438,2]
[403207515,1769267437287,-263.16170749,0.00016438,2]
[403207516,1769267437297,-500.0,0.00016438,2]
[403207517,1769267437306,-800.0,0.00016438,2]
[403207518,1769267437316,-3012.0,0.00016438,2]
[403207519,1769267437326,-151.0,0.00016438,2]
[403207520,1769267437335,-165.26,0.0001644,2]
[403207521,1769267437346,-500.0,0.00016493,2]
[403207522,1769267437355,-9480.44349339,0.00016494,2]
[403207523,1769267437365,-38445.36467444,0.00016517,2]
[403207524,1769267437377,-560.21,0.00016524,2]
[403207525,1769267437387,-500.0,0.00016548,2]
[403207526,1769267437397,-867.75,0.00016577,2]
[403207527,1769267437407,-454.14477787,0.00016602,2]
[403207528,1769267437416,-500.0,0.00016692,2]
[403207529,1769267437426,-1884.94,0.00016712,2]
[403207530,1769267437435,-152.0,0.00016712,5]
[403207531,1769267437444,-9000.0,0.00016714,2]
[403207532,1769267437455,-6403.27410895,0.00016714,2]
[403207533,1769267437465,-151.0,0.00016714,2]
[403207534,1769267437475,-151.0,0.00016714,2]
[403207535,1769267437484,-151.0,0.00016714,2]
[403207536,1769267437493,-151.0,0.00016714,2]
[403207537,1769267437503,-151.0,0.00016714,2]
[403207538,1769267437512,-151.0,0.00016714,2]
[403207539,1769267437522,-151.0,0.00016714,2]
[403207540,1769267437531,-151.0,0.00016714,2]
[403207541,1769267437541,-151.0,0.00016714,2]
[403207542,1769267437553,-322.6107,0.00016714,2]
[403207543,1769267437562,-151.0,0.00016714,2]
[403207544,1769267437571,-151.0,0.00016714,2]
[403207545,1769267437581,-500.0,0.00016714,2]
[403207546,1769267437592,-9552.16786547,0.00016714,2]
[403207547,1769267437601,-500.0,0.00016714,2]
[403207548,1769267437611,-151.0,0.00016714,2]
[403207549,1769267437620,-500.0,0.00016714,2]
[403207550,1769267437632,-250.0,0.00016714,2]
[403207551,1769267437641,-500.0,0.00016714,2]
[403207552,1769267437651,-500.0,0.00016714,2]
[403207553,1769267437660,-250.0,0.00016714,2]
[403207554,1769267437669,-500.0,0.00016714,2]
[403207555,1769267437679,-250.0,0.00016714,2]
[403207556,1769267437688,-500.0,0.00016714,2]
[403207557,1769267437697,-250.0,0.00016714,2]
[403207558,1769267437708,-500.0,0.00016714,2]
[403207559,1769267437717,-250.0,0.00016714,2]
[403207560,1769267437727,-500.0,0.00016714,2]
[403207561,1769267437737,-250.0,0.00016714,2]
[403207562,1769267437748,-500.0,0.00016714,2]
[403207563,1769267437758,-250.0,0.00016714,2]
[403207564,1769267437767,-500.0,0.00016714,2]
[403207565,1769267437776,-250.0,0.00016714,2]
[403207566,1769267437786,-500.0,0.00016714,2]
[403207567,1769267437795,-250.0,0.00016714,2]
[403207568,1769267437804,-500.0,0.00016714,2]
[403207569,1769267437813,-250.0,0.00016714,2]
[403207570,1769267437823,-500.0,0.00016714,2]
[403207571,1769267437833,-500.0,0.00016714,2]
[403207572,1769267437845,-250.0,0.00016714,2]
[403207573,1769267437856,-250.0,0.00016714,2]
[403207574,1769267437866,-500.0,0.00016714,2]
[403207575,1769267437875,-500.0,0.00016714,2]
[403207576,1769267437885,-250.0,0.00016714,2]
[403207577,1769267437894,-250.0,0.00016714,2]
[403207578,1769267437904,-500.0,0.00016714,2]
[403207579,1769267437913,-250.0,0.00016714,2]
[403207580,1769267437923,-250.0,0.00016714,2]
[403207581,1769267437933,-500.0,0.00016714,2]
[403207582,1769267437942,-500.0,0.00016714,2]
[403207583,1769267437953,-250.0,0.00016714,2]
[403207584,1769267437963,-250.0,0.00016714,2]
[403207585,1769267437974,-250.0,0.00016714,2]
[403207586,1769267437984,-500.0,0.00016714,2]
[403207587,1769267437994,-250.0,0.00016714,2]
[403207588,1769267438004,-500.0,0.00016714,2]
[403207589,1769267438014,-250.0,0.00016714,2]
[403207590,1769267438023,-250.0,0.00016714,2]
[403207591,1769267438034,-250.0,0.00016714,2]
[403207592,1769267438044,-250.0,0.00016714,2]
[403207593,1769267438053,-250.0,0.00016714,2]
[403207594,1769267438064,-250.0,0.00016714,2]
[403207595,1769267438074,-250.0,0.00016714,2]
[403207596,1769267438083,-5432.0,0.00016714,2]
[403207597,1769267438093,-250.0,0.00016714,2]
[403207598,1769267438103,-250.0,0.00016714,2]
[403207599,1769267438113,-250.0,0.00016714,2]
[403207600,1769267438123,-250.0,0.00016714,2]
[403207602,1769267438133,-250.0,0.00016714,2]
[403207604,1769267438142,-250.0,0.00016714,2]
[403207605,1769267438152,-250.0,0.00016714,2]
[403207607,1769267438162,-578.20924308,0.00016714,2]
[403207609,1769267438172,-172.48891574,0.00016714,2]
[403207611,1769267438182,-250.0,0.00016714,2]
[403207613,1769267438192,-250.0,0.00016714,2]
[403207615,1769267438203,-250.0,0.00016714,2]
[403207617,1769267438213,-250.0,0.00016714,2]
[403207619,1769267438223,-288.31990463,0.00016714,2]
[403207621,1769267438233,-250.0,0.00016714,2]
[403207623,1769267438243,-250.0,0.00016714,2]
[403207625,1769267438253,-250.0,0.00016714,2]
[403207627,1769267438263,-3581.66735334,0.00016714,2]
[403207629,1769267438273,-854.2589148,0.00016714,2]
[403207631,1769267438283,-721.12765535,0.00016714,2]
[403207633,1769267438292,-174.61919141,0.00016714,2]
[403207635,1769267438302,-250.0,0.00016714,2]
[403207637,1769267438311,-250.0,0.00016714,2]
[403207639,1769267438321,-250.0,0.00016714,2]
[403207641,1769267438331,-743.50770149,0.00016714,2]
[403207643,1769267438341,-250.0,0.00016714,2]
[403207645,1769267438351,-250.0,0.00016714,2]
[403207647,1769267438360,-276.40674304,0.00016714,2]
[403207649,1769267438370,-500.0,0.00016714,2]
[403207652,1769267438382,-500.0,0.00016714,2]
[403207654,1769267438392,-500.0,0.00016714,2]
[403207656,1769267438403,-500.0,0.00016714,2]
[403207658,1769267438413,-500.0,0.00016714,2]
[403207660,1769267438422,-500.0,0.00016714,2]
[403207662,1769267438431,-500.0,0.00016714,2]
[403207664,1769267438441,-500.0,0.00016714,2]
[403207666,1769267438450,-500.0,0.00016714,2]
[403207668,1769267438461,-500.0,0.00016714,2]
[403207670,1769267438470,-500.0,0.00016714,2]
[403207672,1769267438480,-3552.7,0.00016717,2]
[403207674,1769267438489,-836.0,0.0001672,2]
[403207676,1769267438499,-1230.89,0.00016754,2]
[403207678,1769267438509,-179.89,0.00016754,2]
[403207680,1769267438518,-765.87,0.00016754,2]
[403207682,1769267438528,-9000.0,0.00016769,2]
[403207684,1769267438538,-9905.5980765,0.00016769,2]
[403207686,1769267438549,-560.21,0.00016798,2]
[403207688,1769267438563,-500.0,0.00016802,2]
[403207690,1769267438573,-500.0,0.00016802,2]
[403207692,1769267438583,-9000.0,0.00016824,2]
[403207694,1769267438594,-10272.10520533,0.00016824,2]
[403207696,1769267438608,-3552.7,0.00016834,2]
[403207699,1769267438618,-974.67365362,0.00016838,2]
[403207701,1769267438630,-350.97,0.0001684,2]
[403207702,1769267438639,-867.75,0.00016851,2]
[403207705,1769267438648,-2008.38128925,0.00016857,2]
[403207707,1769267438658,-500.0,0.00016857,2]
[403207709,1769267438667,-9000.0,0.00016879,2]
[403207711,1769267438676,-9760.9219736,0.00016879,2]
[403207721,1769267438767,-320.65660765,0.00016879,2]
[403207723,1769267438781,-570.59451667,0.00016879,2]
[403207726,1769267438790,-55.02490673,0.00016924,2]
[403207728,1769267438802,-231.11509327,0.00016924,2]
[403207730,1769267438812,-18.88490673,0.00016934,2]
[403207732,1769267438823,-878.94188727,0.00016934,2]
[403207734,1769267438835,-2215.38478634,0.00016934,2]
[403207737,1769267438847,-5886.78841966,0.00016934,2]
[403207739,1769267438856,-1164.68822153,0.00016934,2]
[403207744,1769267438899,-764.48554386,0.00016934,2]
[403207746,1769267438911,-413.60445614,0.00016934,2]
[403207749,1769267438923,-1008.74102828,0.00016934,2]
[403207761,1769267439035,500.0,0.00011674,2]
[403207804,1769267439463,500.0,0.00011674,2]
[403207815,1769267439561,500.0,0.00011674,2]
[403207835,1769267439728,500.0,0.00011674,2]
[403207848,1769267439848,500.0,0.00011674,2]
[403207905,1769267440394,290.90461419,0.00011674,2]
[403207914,1769267440477,500.0,0.00011674,2]
[403207923,1769267440555,500.0,0.00011674,2]
[403207932,1769267440635,500.0,0.00011674,2]
[403207942,1769267440727,500.0,0.00011674,2]
[403207951,1769267440824,500.0,0.00011674,2]
[403207963,1769267440945,500.0,0.00011674,2]
[403207972,1769267441023,500.0,0.00011674,2]
[403207981,1769267441107,500.0,0.00011674,2]
[403207991,1769267441203,500.0,0.00011674,2]
[403208003,1769267441315,500.0,0.00011674,2]
[403208014,1769267441417,500.0,0.00011674,2]
[403208023,1769267441497,500.0,0.00011674,2]
[403208030,1769267441567,185.35222486,0.00011674,2]
[403208037,1769267441624,314.64777514,0.00011674,2]
[403208047,1769267441717,500.0,0.00011674,2]
[403208059,1769267441818,500.0,0.00011674,2]
[403208068,1769267441900,500.0,0.00011674,2]
[403208082,1769267442033,500.0,0.00011674,2]
[403208356,1769267444889,-150.0,0.00012954,2]
[403208357,1769267444899,-581.46652924,0.0001383,2]
[403208359,1769267444959,-196.53347076,0.0001383,2]
[403208361,1769267444969,-778.0,0.00013885,2]
[403208364,1769267444979,-778.0,0.0001394,2]
[403208366,1769267444988,-436.44985576,0.00013995,2]
[403208373,1769267445051,-341.55014424,0.00013995,2]
[403208375,1769267445060,-7694.78425274,0.00016934,2]
[403208377,1769267445071,-3552.7,0.0001695,2]
[403208379,1769267445080,-472.01625507,0.00016968,2]
[403208381,1769267445089,-1500.0,0.00016968,2]
[403208383,1769267445098,-1500.0,0.00016968,2]
[403208385,1769267445108,-1500.0,0.00016968,2]
[403208387,1769267445117,-1500.0,0.00016968,2]
[403208389,1769267445126,-1500.0,0.00016968,2]
[403208391,1769267445135,-1500.0,0.00016968,2]
[403208393,1769267445144,-1500.0,0.00016968,2]
[403208395,1769267445154,-1500.0,0.00016968,2]
[403208397,1769267445163,-507.95507628,0.00016968,2]
[403208399,1769267445171,-1519.79945563,0.00016968,2]
[403208401,1769267445180,-1500.0,0.00016968,2]
[403208403,1769267445189,-1500.0,0.00016968,2]
[403208405,1769267445198,-409.91910471,0.00016968,2]
[403208407,1769267445207,-613.07928255,0.00016968,2]
[403208409,1769267445216,-420.10334993,0.00016968,2]
[403208411,1769267445226,-1500.0,0.00016968,2]
[403208413,1769267445235,-1500.0,0.00016968,2]
[403208416,1769267445245,-1500.0,0.00016968,2]
[403208418,1769267445255,-1500.0,0.00016968,2]
[403208420,1769267445264,-1500.0,0.00016968,2]
[403208422,1769267445274,-3296.37,0.00016973,2]
[403208424,1769267445283,-1152.0,0.00016976,2]
[403208426,1769267445292,-150.0,0.00016978,2]
[403208428,1769267445302,-558.65,0.00016978,2]
[403208430,1769267445312,-1884.94,0.00016986,2]
[403208432,1769267445322,-9000.0,0.00016989,2]
[403208434,1769267445331,-11455.01673214,0.00016989,2]
[403208436,1769267445340,-276.09590455,0.00016996,2]
[403208438,1769267445349,-250.0,0.00017,2]
[403208440,1769267445358,-500.0,0.00017014,2]
[403208442,1769267445368,-2407.97509974,0.00017044,2]
[403208444,1769267445377,-4236.06670475,0.0001705,2]
[403208446,1769267445387,-1733.4895823,0.00017054,2]
[403208448,1769267445397,-3552.7,0.00017067,2]
[403208450,1769267445416,-560.21,0.00017072,2]
[403208452,1769267445426,-4609.0,0.00017092,2]
[403208454,1769267445435,-1391.89638109,0.000171,2]
[403208503,1769267445858,-778.0,0.00014049,2]
[403208505,1769267445868,-446.04265821,0.000171,2]
[403208507,1769267445877,-2000.0,0.000171,2]
[403208509,1769267445887,-867.75,0.00017125,2]
[403208511,1769267445896,-500.0,0.00017132,2]
[403208513,1769267445905,-500.0,0.00017132,2]
[403208515,1769267445914,-500.0,0.00017132,2]
[403208517,1769267445924,-500.0,0.00017135,2]
[403208519,1769267445932,-500.0,0.00017135,2]
[403208521,1769267445941,-159.59843399,0.00017154,2]
[403208523,1769267445951,-866.0,0.0001717,2]
[403208525,1769267445960,-3552.7,0.00017184,2]
[403208527,1769267445969,-9480.44349339,0.00017197,2]
[403208529,1769267445979,-38445.36467444,0.00017208,2]
[403208531,1769267445988,-3063.0,0.00017228,2]
[403208533,1769267445998,-866.0,0.00017247,2]
[403208535,1769267446007,-1884.94,0.0001726,2]
[403208538,1769267446016,-800.0,0.0001726,2]
[403208540,1769267446025,-800.0,0.0001726,2]
[403208541,1769267446034,-800.0,0.0001726,2]
[403208543,1769267446043,-800.0,0.0001726,2]
[403208546,1769267446056,-800.0,0.0001726,2]
[403208548,1769267446065,-800.0,0.0001726,2]
[403208550,1769267446073,-800.0,0.0001726,2]
[403208552,1769267446082,-800.0,0.0001726,2]
[403208554,1769267446091,-800.0,0.0001726,2]
[403208556,1769267446100,-800.0,0.0001726,2]
[403208558,1769267446109,-800.0,0.0001726,2]
[403208560,1769267446119,-800.0,0.0001726,2]
[403208562,1769267446129,-800.0,0.0001726,2]
[403208564,1769267446138,-800.0,0.0001726,2]
[403208566,1769267446147,-800.0,0.0001726,2]
[403208568,1769267446156,-800.0,0.0001726,2]